Workbook

Sheet Topics
A1: Topics:
A2: Whole Numbers and Decimals
A3: Rounding
A4: Add
A5: Subtract
A6: Multiply
A7: Divide
A8: Exponents
A9: Order of Operations
A10: Word (Application) Problems

Sheet W & D Numbers
A1: Whole Numbers: numbers to the left of the decimal point. Uses the ten one-place digits: 0,1,2,3,4,5,6,7,8,9. Use a comma every third place. | P1: The word "and" goes here when you write the words. | Q1: Decimals: numbers to the right of the decimal point - representing parts of a whole - "a whole" is the number 1 and the "part" is a number between 1 and 0.
A2: Trillions | D2: Billions | G2: Millions | J2: Thousands | M2: Ones | P2: "AND"
A3: ="Hundred "&A2 -> Hundred Trillions | B3: ="Ten "&A2 -> Ten Trillions | C3: =A2 -> Trillions | D3: ="Hundred "&D2 -> Hundred Billions | E3: ="Ten "&D2 -> Ten Billions | F3: =D2 -> Billions | G3: ="Hundred "&G2 -> Hundred Millions | H3: ="Ten "&G2 -> Ten Millions | I3: =G2 -> Millions | J3: ="Hundred "&J2 -> Hundred Thousands | K3: ="Ten "&J2 -> Ten Thousands | L3: =J2 -> Thousands | M3: Hundreds | N3: Tens | O3: Ones | P3: Decimal Point (and) | Q3: Tenths | R3: Hundredths | S3: Thousandths | T3: Ten-Thousandths | U3: Hundred-Thousandths | V3: Millionths
D4: 4 | E4: 5 | F4: 6 | G4: 7 | H4: 5 | I4: 8 | J4: 4 | K4: 5 | L4: 2 | M4: 1 | N4: 1 | O4: 9 | P4: ■ | Q4: 1 | R4: 5 | S4: 5
A6: Define Whole Number ==> A number with no decimals, such as 5,678
A7: Define Decimal ==> A number written with a decimal such as 4.987 or 0.062

Sheet Write It
A1: Number | B1: Write it
A2: 5215.29
A3: 4.567584521e+11

Sheet Write It (an)
A1: Number | B1: Write it | D1: Spell Number Function:
A2: 5215.29 | B2: Five thousand, two hundred fifteen dollars and twenty nine cents --
A3: 4.567584521e+11 | B3: Four hundred fifty six billion, seven hundred fifty eight million, four hundred fifty two thousand, one hundred nineteen dollars and sixteen cents --
A5: 4.567584521e+11

Sheet Round By Hand
A1: Rounding
A2: Why do we have to round?
A4: Example 1: | D4: Because with money we do not have partial pennies,
A5: Gas Cost | B5: 3.799 | D5: for example gas costs $3.799 per gallon
A7: Example 2: | D7: When you have calculated your Income Taxes to be
A8: Income Tax | B8: 567.34 | D8: $567.34, how much should you pay (Income Tax you
D9: round to the dollar)?
A10: Example 3:
A11: Debt = | B11: 4567897 | D11: Financial Statements sometimes must be rounded to
D12: the Thousands.
A14: Rounding by Hand Rules:
A15: 1) Select the position you would like to round to, we'll call it "selected position"
A16: 2) Look at the number to the right of the selected position:
A17: If it is 5 or bigger (5, 6, 7, 8, 9), add 1 to the selected position and drop all the decimals
A18: to the right of the selected position.
A19: If it is less than 5 (4, 3, 2, 1), drop all the decimals to the right of the selected position.
A20: 3) If numbers to drop are whole numbers, instead of dropping them convert them to zeros
A22: Example 1: Buy 1 gallon of gas at $3.799, how much do you pay?
A23: Number = | B23: 3.799
A24: Step 1: | B24: $3.79 | 9 | D24: Select the position you would like to round to, we'll call it "selected position"
A25: Step 2: | B25: 9 | D25: Look at the number to the right of the selected position
B26: Is 9 >= 5? | D26: TRUE, so we add 1 to the selected position and drop all the decimals to the
D27: right of the selected position.
A28: =B23 -> 3.799 | B28: ==>> | C28: =ROUND(A28,2) -> 3.8
A30: **Note: Don't get tricked by Number Formatting. If you type $3.799 into a cell the Currency Auto Format feature will
A31: "show" only two decimals and the resulting number will be $3.80. The solution is to immediately increase decimals. Try it:
A33: Type Number: | B33: 3.799
A35: Example 2: Income Taxes are $567.34, you must round to the dollar.
A36: Number = | B36: 567.34
A37: Step 1: | B37: $567 | .34 | D37: Select the position you would like to round to, we'll call it "selected position"
A38: Step 2: | B38: 3 | D38: Look at the number to the right of the selected position
B39: Is 3 < 5? | D39: TRUE, so we drop all the decimals to the right of the selected position.
A41: =B36 -> 567.34 | B41: ==>> | C41: =ROUND(A41,0) -> 567
A43: Example 3: Financial Statements sometimes must be rounded to the thousands position
A44: Debt = | B44: 4567897 | D44: Select the position you would like to round to, we'll call it "selected position"
A45: Step 1: | B45: $4,567 | ,897 | D45: Look at the number to the right of the selected position
A46: Step 2: | B46: 8 | D46: TRUE, so we convert all the digits to the right of the selected position to zeros.
B47: Is 8 >= 5?
E48: ($000) | F48: In Thousands
A49: =B44 -> 4567897 | B49: ==>> | C49: =ROUND(A49,-3) -> 4568000 | E49: 4658
A51: LUCKILY, WE WILL NEVER HAVE TO ROUND BY HAND AGAIN!!!!!
A52: However, we will have to learn Excel's Rules For Rounding!

Sheet Excel ROUND
A1: Example 1: | B1: $3.799 ==> use 2 because it is the penny position. | C1: ROUND Function | E1: Because with money we do not have partial pennies,
A2: Gas Cost | B2: 3.799 | E2: for example gas costs $3.799 per gallon
A4: Example 2: | B4: $567.34 ==> use 0 because it is the ones position. | C4: ROUND Function | E4: When you have calculated your Income Taxes to be
A5: Income Tax | B5: 567.34 | E5: $567.34, how much should you pay (Income Tax you
E6: round to the dollar)?
A7: Example 3: | B7: $4,567,897 ==> use -3 because it is the thousands position. | C7: ROUND Function
A8: Debt = | B8: 4567897 | E8: Financial Statements sometimes must be rounded to
E9: the Thousands.
A10: See the pattern?
A12: ROUND function
A13: The Excel ROUND function can round any number for you as long as you tell it the position to round
A14: to ("Selected Position")
A15: Excel uses numbers to indicate the selected position.
A16: ROUND function has to arguments: =ROUND(number, num_digits)
A17: number argument can be a number or a formula
A18: num_digits is an integer, like ...-3, -2, -1, 0, 1, 2, 3, 4...
A19: Memorization trick: just remember that the penny position is 2, then if you move to the right add 1, to the left subtract 1.
A21: Practice:
A22: Purpose | B22: Number | C22: Rounded Number
A23: Invoice Total | B23: 120.589 | D23: to penny | E23: 2
A24: Payroll Deduction | B24: 237.351195 | D24: to penny | E24: 2
A25: Income Tax | B25: 1250.6 | D25: to dollar | E25: 0
A26: Financial Statement | B26: 23589511478 | D26: to millions | E26: -6
A28: Here's what to watch out for:
A30: Using Number Formatting to try to round will NOT work:
A31: Income Taxes w Number Format | B31: Income Taxes typed in what we see | C31: Income Taxes without Number Formatting | D31: Income Taxes with ROUND
A32: 45.5
A33: 100.9
A34: 25.5
A37: Here is why ROUND is sooooo Amazing:
A39: Name | B39: Gross Pay | C39: Tax Deduction | E39: Tax Rate | G39: In the Old Days We Had To Round Each Number by Hand
A40: Dillon J | B40: 3228.15 | E40: 0.0765 | G40: =B40*$E$40 -> 246.953475
A41: Ian R | B41: 2820.44 | G41: 215.76366
A42: Sarah | B42: 2856.12 | G42: 218.49318
A43: Maria G | B43: 3102.63 | G43: 237.351195
A44: Daniel | B44: 2981.29 | G44: 228.068685
A45: Bayram M | B45: 3151.47 | G45: 241.087455
A46: Elizabeth A | B46: 3099.62 | G46: 237.12093
A47: Rose | B47: 3205.85 | G47: 245.247525
A48: Deanna F | B48: 3128.79 | G48: 239.352435
A49: Tynia M | B49: 3231.08 | G49: 247.17762
A50: Stefanie K | B50: 3027.82 | G50: 231.62823
A51: Ernesa | B51: 2855.81 | G51: 218.469465
A52: Tyler R | B52: 2803.38 | G52: 214.45857
A53: George S | B53: 3033.64 | G53: 232.07346
A54: Heidi A | B54: 3243.76 | G54: 248.14764
A55: Janet M | B55: 2840.3 | G55: 217.28295
A56: Jonathan D | B56: 2837.05 | G56: 217.034325
A57: Gurdeep | B57: 3031.62 | G57: 231.91893
A58: Seneva R | B58: 3218.43 | G58: 246.209895
A59: Anjula | B59: 3082 | G59: 235.773
A60: John | B60: 3135.6 | G60: 239.8734
A61: Aisha R | B61: 3265.42 | G61: 249.80463
A62: Thu Thi Ngoc | B62: 3006.32 | G62: 229.98348
A63: Pranee | B63: 2926.19 | G63: 223.853535
A64: Ariel E | B64: 2893.55 | G64: 221.356575
A65: Tabitha K | B65: 3086.33 | G65: 236.104245
A66: Dana M | B66: 3124.48 | G66: 239.02272
A67: Jane L | B67: 2955.86 | G67: 226.12329
A68: Maninder J | B68: 3096.47 | G68: 236.879955
A69: Jerilyn S | B69: 2922.97 | G69: 223.607205
A70: Kimberlee | B70: 3106.55 | G70: 237.651075
A71: Lizaelle M | B71: 3043.55 | G71: 232.831575
A72: Chad M | B72: 2819.43 | G72: 215.686395
A73: Lisa L | B73: 2816.33 | G73: 215.449245
A74: Roy J | B74: 3213.87 | G74: 245.861055
A75: Aaron D | B75: 3290.74 | G75: 251.74161
A77: Here is why this is sooooo Important:
A79: Name | B79: Gross Pay | C79: Tax Deduction | E79: Tax Rate | G79: In the Old Days We Had To Round Each Number by Hand
A80: Dillon J | B80: 3228.15 | E80: 0.0765 | G80: =B80*$E$80 -> 246.953475
A81: Ian R | B81: 2820.44 | G81: =B81*$E$80 -> 215.76366
A82: Sarah | B82: 2856.12 | G82: 218.49318
A83: Maria G | B83: 3102.63 | G83: 237.351195
A84: Daniel | B84: 2981.29 | G84: 228.068685
A85: Bayram M | B85: 3151.47 | G85: 241.087455
A86: Elizabeth A | B86: 3099.62 | G86: 237.12093
A87: Rose | B87: 3205.85 | G87: 245.247525
A88: Deanna F | B88: 3128.79 | G88: 239.352435
A89: Tynia M | B89: 3231.08 | G89: 247.17762
A90: Stefanie K | B90: 3027.82 | G90: 231.62823
A91: Ernesa | B91: 2855.81 | G91: 218.469465
A92: Tyler R | B92: 2803.38 | G92: 214.45857
A93: George S | B93: 3033.64 | G93: 232.07346
A94: Heidi A | B94: 3243.76 | G94: 248.14764
A95: Janet M | B95: 2840.3 | G95: 217.28295
A96: Jonathan D | B96: 2837.05 | G96: 217.034325
A97: Gurdeep | B97: 3031.62 | G97: 231.91893
A98: Seneva R | B98: 3218.43 | G98: 246.209895
A99: Anjula | B99: 3082 | G99: 235.773
A100: John | B100: 3135.6 | G100: 239.8734
A101: Aisha R | B101: 3265.42 | G101: 249.80463
A102: Thu Thi Ngoc | B102: 3006.32 | G102: 229.98348
A103: Pranee | B103: 2926.19 | G103: 223.853535
A104: Ariel E | B104: 2893.55 | G104: 221.356575
A105: Tabitha K | B105: 3086.33 | G105: 236.104245
A106: Dana M | B106: 3124.48 | G106: 239.02272
A107: Jane L | B107: 2955.86 | G107: 226.12329
A108: Maninder J | B108: 3096.47 | G108: 236.879955
A109: Jerilyn S | B109: 2922.97 | G109: 223.607205
A110: Kimberlee | B110: 3106.55 | G110: 237.651075
A111: Lizaelle M | B111: 3043.55 | G111: 232.831575
A112: Chad M | B112: 2819.43 | G112: 215.686395
A113: Lisa L | B113: 2816.33 | G113: 215.449245
A114: Roy J | B114: 3213.87 | G114: 245.861055
A115: Aaron D | B115: 3290.74 | G115: 251.74161
A118: For Payroll and Invoicing and other Business Money Calculations that require that you round, if
A119: you don't round and you calculate the incorrect number, people will not trust your ability to
A120: make calculations accurately.
A122: Rules for when you MUST use ROUND function:
A123: 1) You are required to round (no unit of money smaller than a penny, income taxes, etc.)
A124: 2) You will use formula result in subsequent formula
A125: 3) If the numbers are already rounded, don't use the ROUND function (like for the SUM
A126: function when all the numbers being added are already rounded.
A128: Note: If you make a calculation, but you will never use the formula result in subsequent
A129: calculations, formatting to see only two decimals will suffice.
A131: Tax Rate | B131: Gross | C131: Tax Deduction
A132: 0.0765 | B132: 5248.25 | D132: <<== If you were just going to look at the number
D133: and write it on paper, Number Formatting is fine.
A135: Tax Rate | B135: Gross | C135: Tax Deduction | E135: ROUND
A136: 0.0145 | B136: 507.47
B137: 145.89
B138: 29.7
G139: << Don't need to use
C140: < < | G140: ROUND for SUM
C141: But if the formula result will be used in subsequent
C142: formulas, you must use ROUND.
A144: Homework type problem:
A146: Problem | B146: Number | C146: Rounded To Penny
A147: 37 | B147: 5.056
A148: 38 | B148: 375.003
A149: 39 | B149: 42.137
A150: 40 | B150: 0.008
A151: 41 | B151: 1.995
A152: 42 | B152: 16.519
A153: 43 | B153: 382.005
A154: 44 | B154: 0.846
A155: 45 | B155: 1.5002
A156: 46 | B156: 28.994
A157: 47 | B157: 32.493
A158: 48 | B158: 12802.965
A159: 49 | B159: 0.0015
A160: 50 | B160: 7.6009
A161: 51 | B161: 752.798
A162: Total | E162: << Don't need to use ROUND for SUM
A165: One Last Things:
A167: When in doubt about whether to round, maybe look at Number
A168: Formatting (Apply General Number Formatting) and see whether or not
A169: the numbers need to be rounded:
B171: Numbers (no requirement to round | D171: Dollars that will be added | G171: Dollars that have been Rounded
B172: 480.4217 | D172: =B172 -> 480.4217
B173: 736.4189 | D173: 736.4189
B174: 661.9328 | D174: 661.9328
B175: 866.555 | D175: 866.555
B176: 101.8011 | D176: 101.8011
B177: 172.345 | D177: 172.345
A178: Total | C178: Total

Sheet Excel ROUND (an)
A1: Example 1: | B1: $3.799 ==> use 2 because it is the penny position. | C1: ROUND Function | E1: Because with money we do not have partial pennies,
A2: Gas Cost | B2: 3.799 | C2: =ROUND(B2,2) -> 3.8 | E2: for example gas costs $3.799 per gallon
A4: Example 2: | B4: $567.34 ==> use 0 because it is the ones position. | C4: ROUND Function | E4: When you have calculated your Income Taxes to be
A5: Income Tax | B5: 567.34 | C5: =ROUND(B5,0) -> 567 | E5: $567.34, how much should you pay (Income Tax you
E6: round to the dollar)?
A7: Example 3: | B7: $4,567,897 ==> use -3 because it is the thousands position. | C7: ROUND Function
A8: Debt = | B8: 4567897 | C8: =ROUND(B8,-3) -> 4568000 | E8: Financial Statements sometimes must be rounded to
E9: the Thousands.
A10: See the pattern?
A12: ROUND function
A13: The Excel ROUND function can round any number for you as long as you tell it the position to round
A14: to ("Selected Position")
A15: Excel uses numbers to indicate the selected position.
A16: ROUND function has to arguments: =ROUND(number, num_digits)
A17: number argument can be a number or a formula
A18: num_digits is an integer, like ...-3, -2, -1, 0, 1, 2, 3, 4...
A19: Memorization trick: just remember that the penny position is 2, then if you move to the right add 1, to the left subtract 1.
A21: Practice:
A22: Purpose | B22: Number | C22: Rounded Number
A23: Invoice Total | B23: 120.589 | C23: =ROUND(B23,2) -> 120.59 | D23: to penny | E23: 2
A24: Payroll Deduction | B24: 237.351195 | C24: =ROUND(B24,2) -> 237.35 | D24: to penny | E24: 2
A25: Income Tax | B25: 1250.6 | C25: =ROUND(B25,0) -> 1251 | D25: to dollar | E25: 0
A26: Financial Statement | B26: 23589511478 | C26: =ROUND(B26,-6) -> 23590000000 | D26: to millions | E26: -6
A28: Here's what to watch out for:
A30: Using Number Formatting to try to round will NOT work:
A31: Income Taxes w Number Format | B31: Income Taxes typed in what we see | C31: Income Taxes without Number Formatting | D31: Income Taxes with ROUND
A32: 45.5 | B32: 46 | C32: =A32 -> 45.5 | D32: =ROUND(C32,0) -> 46
A33: 100.9 | B33: 101 | C33: 100.9 | D33: =ROUND(C33,0) -> 101
A34: 25.5 | B34: 26 | C34: 25.5 | D34: 26
A35: =SUM(A32:A34) -> 171.9 | B35: =SUM(B32:B34) -> 173 | C35: 171.9 | D35: =SUM(D32:D34) -> 173
A37: Here is why ROUND is sooooo Amazing:
A39: Name | B39: Gross Pay | C39: Tax Deduction | E39: Tax Rate | G39: In the Old Days We Had To Round Each Number by Hand
A40: Dillon J | B40: 3228.15 | C40: =ROUND(B40*$E$40,2) -> 246.95 | E40: 0.0765 | G40: =B40*$E$40 -> 246.953475
A41: Ian R | B41: 2820.44 | C41: =ROUND(B41*$E$40,2) -> 215.76 | G41: 215.76366
A42: Sarah | B42: 2856.12 | C42: 218.49 | G42: 218.49318
A43: Maria G | B43: 3102.63 | C43: 237.35 | G43: 237.351195
A44: Daniel | B44: 2981.29 | C44: 228.07 | G44: 228.068685
A45: Bayram M | B45: 3151.47 | C45: 241.09 | G45: 241.087455
A46: Elizabeth A | B46: 3099.62 | C46: 237.12 | G46: 237.12093
A47: Rose | B47: 3205.85 | C47: 245.25 | G47: 245.247525
A48: Deanna F | B48: 3128.79 | C48: 239.35 | G48: 239.352435
A49: Tynia M | B49: 3231.08 | C49: 247.18 | G49: 247.17762
A50: Stefanie K | B50: 3027.82 | C50: 231.63 | G50: 231.62823
A51: Ernesa | B51: 2855.81 | C51: 218.47 | G51: 218.469465
A52: Tyler R | B52: 2803.38 | C52: 214.46 | G52: 214.45857
A53: George S | B53: 3033.64 | C53: 232.07 | G53: 232.07346
A54: Heidi A | B54: 3243.76 | C54: 248.15 | G54: 248.14764
A55: Janet M | B55: 2840.3 | C55: 217.28 | G55: 217.28295
A56: Jonathan D | B56: 2837.05 | C56: 217.03 | G56: 217.034325
A57: Gurdeep | B57: 3031.62 | C57: 231.92 | G57: 231.91893
A58: Seneva R | B58: 3218.43 | C58: 246.21 | G58: 246.209895
A59: Anjula | B59: 3082 | C59: 235.77 | G59: 235.773
A60: John | B60: 3135.6 | C60: 239.87 | G60: 239.8734
A61: Aisha R | B61: 3265.42 | C61: 249.8 | G61: 249.80463
A62: Thu Thi Ngoc | B62: 3006.32 | C62: 229.98 | G62: 229.98348
A63: Pranee | B63: 2926.19 | C63: 223.85 | G63: 223.853535
A64: Ariel E | B64: 2893.55 | C64: 221.36 | G64: 221.356575
A65: Tabitha K | B65: 3086.33 | C65: 236.1 | G65: 236.104245
A66: Dana M | B66: 3124.48 | C66: 239.02 | G66: 239.02272
A67: Jane L | B67: 2955.86 | C67: 226.12 | G67: 226.12329
A68: Maninder J | B68: 3096.47 | C68: 236.88 | G68: 236.879955
A69: Jerilyn S | B69: 2922.97 | C69: 223.61 | G69: 223.607205
A70: Kimberlee | B70: 3106.55 | C70: 237.65 | G70: 237.651075
A71: Lizaelle M | B71: 3043.55 | C71: 232.83 | G71: 232.831575
A72: Chad M | B72: 2819.43 | C72: 215.69 | G72: 215.686395
A73: Lisa L | B73: 2816.33 | C73: 215.45 | G73: 215.449245
A74: Roy J | B74: 3213.87 | C74: 245.86 | G74: 245.861055
A75: Aaron D | B75: 3290.74 | C75: =ROUND(B75*$E$40,2) -> 251.74 | G75: 251.74161
A77: Here is why this is sooooo Important:
A79: Name | B79: Gross Pay | C79: Tax Deduction | E79: Tax Rate | G79: In the Old Days We Had To Round Each Number by Hand
A80: Dillon J | B80: 3228.15 | C80: =ROUND(B80*$E$80,2) -> 246.95 | E80: 0.0765 | G80: =B80*$E$80 -> 246.953475
A81: Ian R | B81: 2820.44 | C81: =ROUND(B81*$E$80,2) -> 215.76 | G81: =B81*$E$80 -> 215.76366
A82: Sarah | B82: 2856.12 | C82: 218.49 | G82: 218.49318
A83: Maria G | B83: 3102.63 | C83: 237.35 | G83: 237.351195
A84: Daniel | B84: 2981.29 | C84: 228.07 | G84: 228.068685
A85: Bayram M | B85: 3151.47 | C85: 241.09 | G85: 241.087455
A86: Elizabeth A | B86: 3099.62 | C86: 237.12 | G86: 237.12093
A87: Rose | B87: 3205.85 | C87: 245.25 | G87: 245.247525
A88: Deanna F | B88: 3128.79 | C88: 239.35 | G88: 239.352435
A89: Tynia M | B89: 3231.08 | C89: 247.18 | G89: 247.17762
A90: Stefanie K | B90: 3027.82 | C90: 231.63 | G90: 231.62823
A91: Ernesa | B91: 2855.81 | C91: 218.47 | G91: 218.469465
A92: Tyler R | B92: 2803.38 | C92: 214.46 | G92: 214.45857
A93: George S | B93: 3033.64 | C93: 232.07 | G93: 232.07346
A94: Heidi A | B94: 3243.76 | C94: 248.15 | G94: 248.14764
A95: Janet M | B95: 2840.3 | C95: 217.28 | G95: 217.28295
A96: Jonathan D | B96: 2837.05 | C96: 217.03 | G96: 217.034325
A97: Gurdeep | B97: 3031.62 | C97: 231.92 | G97: 231.91893
A98: Seneva R | B98: 3218.43 | C98: 246.21 | G98: 246.209895
A99: Anjula | B99: 3082 | C99: 235.77 | G99: 235.773
A100: John | B100: 3135.6 | C100: 239.87 | G100: 239.8734
A101: Aisha R | B101: 3265.42 | C101: 249.8 | G101: 249.80463
A102: Thu Thi Ngoc | B102: 3006.32 | C102: 229.98 | G102: 229.98348
A103: Pranee | B103: 2926.19 | C103: 223.85 | G103: 223.853535
A104: Ariel E | B104: 2893.55 | C104: 221.36 | G104: 221.356575
A105: Tabitha K | B105: 3086.33 | C105: 236.1 | G105: 236.104245
A106: Dana M | B106: 3124.48 | C106: 239.02 | G106: 239.02272
A107: Jane L | B107: 2955.86 | C107: 226.12 | G107: 226.12329
A108: Maninder J | B108: 3096.47 | C108: 236.88 | G108: 236.879955
A109: Jerilyn S | B109: 2922.97 | C109: 223.61 | G109: 223.607205
A110: Kimberlee | B110: 3106.55 | C110: 237.65 | G110: 237.651075
A111: Lizaelle M | B111: 3043.55 | C111: 232.83 | G111: 232.831575
A112: Chad M | B112: 2819.43 | C112: 215.69 | G112: 215.686395
A113: Lisa L | B113: 2816.33 | C113: 215.45 | G113: 215.449245
A114: Roy J | B114: 3213.87 | C114: 245.86 | G114: 245.861055
A115: Aaron D | B115: 3290.74 | C115: =ROUND(B115*$E$80,2) -> 251.74 | G115: 251.74161
C116: =SUM(C80:C115) -> 8375.41 | G116: =SUM(G80:G115) -> 8375.442615
A118: For Payroll and Invoicing and other Business Money Calculations that require that you round, if
A119: you don't round and you calculate the incorrect number, people will not trust your ability to
A120: make calculations accurately.
A122: Rules for when you MUST use ROUND function:
A123: 1) You are required to round (no unit of money smaller than a penny, income taxes, etc.)
A124: 2) You will use formula result in subsequent formula
A125: 3) If the numbers are already rounded, don't use the ROUND function (like for the SUM
A126: function when all the numbers being added are already rounded.
A128: Note: If you make a calculation, but you will never use the formula result in subsequent
A129: calculations, formatting to see only two decimals will suffice.
A131: Tax Rate | B131: Gross | C131: Tax Deduction
A132: 0.0765 | B132: 5248.25 | C132: =A132*B132 -> 401.491125 | D132: <<== If you were just going to look at the number
D133: and write it on paper, Number Formatting is fine.
A135: Tax Rate | B135: Gross | C135: Tax Deduction | E135: ROUND
A136: 0.0145 | B136: 507.47 | C136: =B136*$A$136 -> 7.358315 | E136: =ROUND(B136*$A$136,2) -> 7.36
B137: 145.89 | C137: =B137*$A$136 -> 2.115405 | E137: =ROUND(B137*$A$136,2) -> 2.12
B138: 29.7 | C138: 0.43065 | E138: 0.43
C139: =SUM(C136:C138) -> 9.90437 | E139: =SUM(E136:E138) -> 9.91 | G139: << Don't need to use
C140: < < | G140: ROUND for SUM
C141: But if the formula result will be used in subsequent
C142: formulas, you must use ROUND.
A144: Homework type problem:
A146: Problem | B146: Number | C146: Rounded To Penny
A147: 37 | B147: 5.056 | C147: =ROUND(B147,2) -> 5.06
A148: 38 | B148: 375.003 | C148: =ROUND(B148,2) -> 375
A149: 39 | B149: 42.137 | C149: 42.14
A150: 40 | B150: 0.008 | C150: 0.01
A151: 41 | B151: 1.995 | C151: 2
A152: 42 | B152: 16.519 | C152: 16.52
A153: 43 | B153: 382.005 | C153: 382.01
A154: 44 | B154: 0.846 | C154: 0.85
A155: 45 | B155: 1.5002 | C155: 1.5
A156: 46 | B156: 28.994 | C156: 28.99
A157: 47 | B157: 32.493 | C157: 32.49
A158: 48 | B158: 12802.965 | C158: 12802.97
A159: 49 | B159: 0.0015 | C159: 0
A160: 50 | B160: 7.6009 | C160: 7.6
A161: 51 | B161: 752.798 | C161: 752.8
A162: Total | B162: =SUM(B147:B161) -> 14449.9216 | C162: =SUM(C147:C161) -> 14449.94 | E162: << Don't need to use ROUND for SUM
A165: One Last Things:
A167: When in doubt about whether to round, maybe look at Number
A168: Formatting (Apply General Number Formatting) and see whether or not
A169: the numbers need to be rounded:
B171: Numbers (no requirement to round | D171: Dollars that will be added | G171: Dollars that have been Rounded
B172: 480.4217 | D172: =B172 -> 480.4217 | G172: =ROUND(D172,2) -> 480.42
B173: 736.4189 | D173: 736.4189 | G173: =ROUND(D173,2) -> 736.42
B174: 661.9328 | D174: 661.9328 | G174: 661.93
B175: 866.555 | D175: 866.555 | G175: 866.56
B176: 101.8011 | D176: 101.8011 | G176: 101.8
B177: 172.345 | D177: 172.345 | G177: 172.35
A178: Total | B178: =SUM(B172:B177) -> 3019.4745 | C178: Total | D178: =SUM(D172:D177) -> 3019.4745 | G178: =SUM(G172:G177) -> 3019.48

Sheet Add&Subtract
A1: Adding
A3: Name | B3: Gross Pay | C3: Tax Deduction | E3: Tax Rate
A4: Dillon J | B4: 804 | E4: 0.0765
A5: Ian R | B5: 761
A6: Sarah | B6: 1125
A7: Maria G | B7: 1070
A8: Daniel | B8: 985
A9: Bayram M | B9: 872
A10: Elizabeth A | B10: 809
A11: Rose | B11: 856
A12: Deanna F | B12: 982
A13: Tynia M | B13: 1074
A14: Stefanie K | B14: 982
A15: Ernesa | B15: 1176
A16: Tyler R | B16: 1123
A17: George S | B17: 1099
A18: Heidi A | B18: 815
A19: Janet M | B19: 843
A20: Jonathan D | B20: 872
A21: Gurdeep | B21: 902
A22: Seneva R | B22: 1004
A23: Anjula | B23: 1107
A24: John | B24: 1040
A25: Aisha R | B25: 1135
A26: Thu Thi Ngoc | B26: 800
A27: Pranee | B27: 1199
A28: Ariel E | B28: 1156
A29: Tabitha K | B29: 1144
A30: Dana M | B30: 919
A31: Jane L | B31: 1227
A32: Maninder J | B32: 931
A33: Jerilyn S | B33: 1071
A34: Kimberlee | B34: 922 | E34: IF NUMBERS REQUIRE ROUNDING, BE SURE TO ROUND
A35: Lizaelle M | B35: 1206 | E35: NUMBERS BEFORE ADDING!!!!!
A36: Chad M | B36: 1090
A37: Lisa L | B37: 1117 | E37: Efficient to use SUM function because: 1) Fast. 2) Can
A38: Roy J | B38: 752 | E38: handle structural changes like inserting a row.
A39: Aaron D | B39: 842
D40: =C4+C5+C6+C7+C8+C9+C10+C11+C12+C13+C14+C15+C16+C17+C18+C19+C20+C21+C22+C23+C24+C25+C26+C27+C28+C29+C30+C31+C32+C33+C34+C35+C36+C37+C38+C39 -> 0
A42: Invoice 12305 | B42: Amount | D42: Invoice 12332 | E42: Amount | G42: Invoice 12288 | H42: Amount | L42: Sales | N42: Sales | P42: Sales
A43: Product 1 | B43: 45.32 | D43: Product 1 | E43: 90.43 | G43: Product 1 | H43: 37.63 | L43: 6 | N43: 8 | P43: 5
A44: Product 2 | B44: 50 | D44: Product 2 | E44: 53.13 | G44: Product 2 | H44: 91.24 | L44: 17 | N44: 10 | P44: 15
A45: Product 3 | B45: 69.3 | D45: Product 3 | E45: 78.62 | G45: Product 3 | H45: 39.02 | L45: 19 | N45: 9 | P45: 15
A46: Product 4 | B46: 43.96 | D46: Product 4 | E46: 105.7 | G46: Product 4 | H46: 106.94 | L46: 16 | N46: 2 | P46: 14
A47: Product 5 | B47: 102 | D47: Product 5 | E47: 73.7 | G47: Product 5 | H47: 49.38 | L47: 12 | N47: 12 | P47: 5
A48: Total | D48: Total | G48: Total | L48: 12 | N48: 6 | P48: 13
L49: 19 | N49: 1 | P49: 6
A50: Total | L50: 20 | N50: 7 | P50: 6
B51: or | D51: Okay to use + + + + or SUM(,,,,) when cells are not next to each other.
L52: Total
A54: $ in Thousands ($000)
A55: Department | B55: Jan | C55: Feb | D55: Mar | E55: Apr | F55: May | G55: Jun | H55: Total
A56: Household
A57: Grocery
A58: Sport
A59: Garden
A60: Total
A62: Highlight rectangular region in advance and use the Enter key to move down and across columns!
A63: To put SUM everywhere, highlighting 1 row below the numbers and 1 row to the right of the numbers, and then evoke
A64: keyboard for SUM function: Alt + =
A67: Subtracting | F67: To be Efficient with subtraction when you
F68: have many deductions is to add up all the
A69: Total Revenue | B69: 5625896 | F69: subtractions into one number and then
A70: Total Expenses | B70: 4985623 | F70: subtract that one number
A71: Net Income | F71: < | G71: < | H71: <
G72: Efficient | H72: Not Efficient
A73: Name | B73: Gross | C73: Deduction 1 | D73: Deduction 2 | E73: Deduction 3 | F73: Total | G73: Net Pay | H73: Net Pay
A74: Sioux | B74: 754 | C74: =ROUND($B74*C$80,2) -> 46.75 | D74: 10.93 | E74: 75.4
A75: Sue | B75: 822 | C75: 50.96 | D75: 11.92 | E75: 82.2
A76: Jo | B76: 867 | C76: 53.75 | D76: 12.57 | E76: 86.7
A77: Joe | B77: 939 | C77: 58.22 | D77: 13.62 | E77: 93.9
C79: FICA | D79: Medicare | E79: Fed
C80: 0.062 | D80: 0.0145 | E80: 0.1
A82: Income Statement ($000)
A83: Revenue: | D83: <<== Revenue means funds coming into
A84: Sales Revenue | B84: 500 | D84: business
A85: Returns and Allowances | B85: 5
A86: Net Revenue
A88: Expenses: | D88: <<== Expenses means funds coming out of
A89: COGS | B89: 315 | D89: business
A90: Wages | B90: 95
A91: Lease Expense | B91: 55
A92: Operations | B92: 41
A93: Misc Expenses | B93: 12
A94: Total Expenses
A95: Net Income | D95: <<== Net Income is a synonym for "Profit",
D96: "Earnings", "Amount Left Over"

Sheet Add&Subtract (an)
A1: Adding
A3: Name | B3: Gross Pay | C3: Tax Deduction | E3: Tax Rate
A4: Dillon J | B4: 804 | C4: =ROUND(B4*$E$4,2) -> 61.51 | E4: 0.0765
A5: Ian R | B5: 761 | C5: =ROUND(B5*$E$4,2) -> 58.22
A6: Sarah | B6: 1125 | C6: 86.06
A7: Maria G | B7: 1070 | C7: 81.86
A8: Daniel | B8: 985 | C8: 75.35
A9: Bayram M | B9: 872 | C9: 66.71
A10: Elizabeth A | B10: 809 | C10: 61.89
A11: Rose | B11: 856 | C11: 65.48
A12: Deanna F | B12: 982 | C12: 75.12
A13: Tynia M | B13: 1074 | C13: 82.16
A14: Stefanie K | B14: 982 | C14: 75.12
A15: Ernesa | B15: 1176 | C15: 89.96
A16: Tyler R | B16: 1123 | C16: 85.91
A17: George S | B17: 1099 | C17: 84.07
A18: Heidi A | B18: 815 | C18: 62.35
A19: Janet M | B19: 843 | C19: 64.49
A20: Jonathan D | B20: 872 | C20: 66.71
A21: Gurdeep | B21: 902 | C21: 69
A22: Seneva R | B22: 1004 | C22: 76.81
A23: Anjula | B23: 1107 | C23: 84.69
A24: John | B24: 1040 | C24: 79.56
A25: Aisha R | B25: 1135 | C25: 86.83
A26: Thu Thi Ngoc | B26: 800 | C26: 61.2
A27: Pranee | B27: 1199 | C27: 91.72
A28: Ariel E | B28: 1156 | C28: 88.43
A29: Tabitha K | B29: 1144 | C29: 87.52
A30: Dana M | B30: 919 | C30: 70.3
A31: Jane L | B31: 1227 | C31: 93.87
A32: Maninder J | B32: 931 | C32: 71.22
A33: Jerilyn S | B33: 1071 | C33: 81.93
A34: Kimberlee | B34: 922 | C34: 70.53 | E34: IF NUMBERS REQUIRE ROUNDING, BE SURE TO ROUND
A35: Lizaelle M | B35: 1206 | C35: 92.26 | E35: NUMBERS BEFORE ADDING!!!!!
A36: Chad M | B36: 1090 | C36: 83.39
A37: Lisa L | B37: 1117 | C37: 85.45 | E37: Efficient to use SUM function because: 1) Fast. 2) Can
A38: Roy J | B38: 752 | C38: 57.53 | E38: handle structural changes like inserting a row.
A39: Aaron D | B39: 842 | C39: =ROUND(B39*$E$4,2) -> 64.41
C40: =SUM(C4:C39) -> 2739.62 | D40: =C4+C5+C6+C7+C8+C9+C10+C11+C12+C13+C14+C15+C16+C17+C18+C19+C20+C21+C22+C23+C24+C25+C26+C27+C28+C29+C30+C31+C32+C33+C34+C35+C36+C37+C38+C39 -> 2739.62
A42: Invoice 12305 | B42: Amount | D42: Invoice 12332 | E42: Amount | G42: Invoice 12288 | H42: Amount | L42: Sales | N42: Sales | P42: Sales
A43: Product 1 | B43: 45.32 | D43: Product 1 | E43: 90.43 | G43: Product 1 | H43: 37.63 | L43: 6 | N43: 8 | P43: 5
A44: Product 2 | B44: 50 | D44: Product 2 | E44: 53.13 | G44: Product 2 | H44: 91.24 | L44: 17 | N44: 10 | P44: 15
A45: Product 3 | B45: 69.3 | D45: Product 3 | E45: 78.62 | G45: Product 3 | H45: 39.02 | L45: 19 | N45: 9 | P45: 15
A46: Product 4 | B46: 43.96 | D46: Product 4 | E46: 105.7 | G46: Product 4 | H46: 106.94 | L46: 16 | N46: 2 | P46: 14
A47: Product 5 | B47: 102 | D47: Product 5 | E47: 73.7 | G47: Product 5 | H47: 49.38 | L47: 12 | N47: 12 | P47: 5
A48: Total | B48: =SUM(B43:B47) -> 310.58 | D48: Total | E48: =SUM(E43:E47) -> 401.58 | G48: Total | H48: =SUM(H43:H47) -> 324.21 | L48: 12 | N48: 6 | P48: 13
L49: 19 | N49: 1 | P49: 6
A50: Total | B50: =B48+E48+H48 -> 1036.37 | L50: 20 | N50: 7 | P50: 6
B51: or | D51: Okay to use + + + + or SUM(,,,,) when cells are not next to each other.
B52: =SUM(B48,E48,H48) -> 1036.37 | C52: =SUM(B48,E48,H48) -> 1036.37 | L52: Total | M52: =SUM(L43:L50,N43:N50,P43:P50) -> 255
A54: $ in Thousands ($000)
A55: Department | B55: Jan | C55: Feb | D55: Mar | E55: Apr | F55: May | G55: Jun | H55: Total
A56: Household | B56: 10 | C56: 20 | D56: 60 | E56: 6 | F56: 5 | G56: 5 | H56: =SUM(B56:G56) -> 106
A57: Grocery | B57: 20 | C57: 20 | D57: 5 | E57: 6 | F57: 4 | G57: 5 | H57: =SUM(B57:G57) -> 60
A58: Sport | B58: 30 | C58: 30 | D58: 8 | E58: 6 | F58: 4 | G58: 45 | H58: =SUM(B58:G58) -> 123
A59: Garden | B59: 50 | C59: 50 | D59: 9 | E59: 5 | F59: 5 | G59: 78 | H59: =SUM(B59:G59) -> 197
A60: Total | B60: =SUM(B56:B59) -> 110 | C60: 120 | D60: 82 | E60: 23 | F60: 18 | G60: 133 | H60: =SUM(B60:G60) -> 486
A62: Highlight rectangular region in advance and use the Enter key to move down and across columns!
A63: To put SUM everywhere, highlighting 1 row below the numbers and 1 row to the right of the numbers, and then evoke
A64: keyboard for SUM function: Alt + =
A67: Subtracting | F67: To be Efficient with subtraction when you
F68: have many deductions is to add up all the
A69: Total Revenue | B69: 5625896 | F69: subtractions into one number and then
A70: Total Expenses | B70: 4985623 | F70: subtract that one number
A71: Net Income | B71: =B69-B70 -> 640273 | F71: < | G71: < | H71: <
G72: Efficient | H72: Not Efficient
A73: Name | B73: Gross | C73: Deduction 1 | D73: Deduction 2 | E73: Deduction 3 | F73: Total | G73: Net Pay | H73: Net Pay
A74: Sioux | B74: 754 | C74: =ROUND($B74*C$80,2) -> 46.75 | D74: 10.93 | E74: 75.4 | F74: =SUM(C74:E74) -> 133.08 | G74: =B74-F74 -> 620.92 | H74: =B74-C74-D74-E74 -> 620.92
A75: Sue | B75: 822 | C75: 50.96 | D75: 11.92 | E75: 82.2 | F75: =SUM(C75:E75) -> 145.08 | G75: =B75-F75 -> 676.92 | H75: =B75-C75-D75-E75 -> 676.92
A76: Jo | B76: 867 | C76: 53.75 | D76: 12.57 | E76: 86.7 | F76: 153.02 | G76: 713.98 | H76: 713.98
A77: Joe | B77: 939 | C77: 58.22 | D77: 13.62 | E77: 93.9 | F77: 165.74 | G77: 773.26 | H77: 773.26
C79: FICA | D79: Medicare | E79: Fed
C80: 0.062 | D80: 0.0145 | E80: 0.1
A82: Income Statement ($000)
A83: Revenue: | D83: <<== Revenue means funds coming into
A84: Sales Revenue | B84: 500 | D84: business
A85: Returns and Allowances | B85: 5
A86: Net Revenue | B86: =SUM(B84:B85) -> 505
A88: Expenses: | D88: <<== Expenses means funds coming out of
A89: COGS | B89: 315 | D89: business
A90: Wages | B90: 95
A91: Lease Expense | B91: 55
A92: Operations | B92: 41
A93: Misc Expenses | B93: 12
A94: Total Expenses | B94: =SUM(B89:B93) -> 518
A95: Net Income | B95: =B86-B94 -> -13 | D95: <<== Net Income is a synonym for "Profit",
D96: "Earnings", "Amount Left Over"

Sheet Multiple&Divide
A1: Invoice # 3456
A2: Product | B2: Number Bought | C2: Price Each | D2: Total
A3: Part 10022 | B3: 23 | C3: 0.765 | F3: <<== When multiplying decimals, we are likely to get
A4: Part 3499 | B4: 52 | C4: 1 | F4: a bunch of decimals that will require rounding
A5: Part 33489 | B5: 61 | C5: 2.55
C7: Subtotal | F7: Tax Rate
C8: Tax | F8: 0.0985
C9: Total
A12: Chapter 7: Series Discounts: Require that you multiply more than two items
A14: Discount 1 | B14: 0.8 | D14: Discount 1 | E14: 0.65 | G14: "Product" means "Answer Result from
A15: Discount 2 | B15: 0.9 | D15: Discount 2 | E15: 0.8 | G15: Multiplying.
A16: Discount 3 | B16: 0.9 | D16: Discount 3 | E16: 0.85 | G16: <<== Occasionally, the PRODUCT function
A17: Net Cost Equivalent | C17: =B14*B15*B16 -> 0.648 | D17: Net Cost Equivalent | G17: may come in handy when you have a
G18: bunch of numbers to multiply
A20: Chapter 3: Compare Parts to Whole, we use Division
A22: Student Name | B22: Student Score | C22: Compare Your Score To Max Doing Division | E22: Max points for class
A23: Jo | B23: 362 | E23: 500
A24: Joe | B24: 500
A25: Sioux | B25: 396
A26: Sue | B26: 477
A27: Chin | B27: 453
A28: Sheliadawn | B28: 454
A30: Expense for Week | B30: 2955 | D30: <<== Keyboard for "Current" Number Format = Ctrl + Shift + 4
A31: Daily Expense | D31: << == Numbers that will never change can be typed into formulas.
A34: ** Dividing by zero not allowed because "How many
A35: Zeroes are in a number???"
A37: Numerator | B37: Denominator | C37: Quotient (answer)
A38: 10 | B38: 2
A40: Example of Remainder, Fraction, Decimal:
A42: Long Hand Division | F42: Check
A43: Numerator | B43: Denominator | D43: 126 | F43: 24
A44: 126 | B44: 24 | D44: 24 | E44: Whole Number
E46: Remainder
A48: Numerator | B48: Denominator | C48: Quotient (answer) | D48: QUOTIENT function shows just whole number | E48: MOD Function shows just remainder | F48: Whole Number w Fraction (Mixed Number)
A49: 126 | B49: 24 | G49: <<== Fraction Number Formatting

Sheet Multiple&Divide (an)
A1: Invoice # 3456
A2: Product | B2: Number Bought | C2: Price Each | D2: Total
A3: Part 10022 | B3: 23 | C3: 0.765 | D3: =ROUND(B3*C3,2) -> 17.6 | F3: <<== When multiplying decimals, we are likely to get
A4: Part 3499 | B4: 52 | C4: 1 | D4: =ROUND(B4*C4,2) -> 52 | F4: a bunch of decimals that will require rounding
A5: Part 33489 | B5: 61 | C5: 2.55 | D5: 155.55
C7: Subtotal | D7: =SUM(D3:D5) -> 225.15 | F7: Tax Rate
C8: Tax | D8: =ROUND(D7*F8,2) -> 22.18 | F8: 0.0985
C9: Total | D9: =SUM(D7:D8) -> 247.33
A12: Chapter 7: Series Discounts: Require that you multiply more than two items
A14: Discount 1 | B14: 0.8 | D14: Discount 1 | E14: 0.65 | G14: "Product" means "Answer Result from
A15: Discount 2 | B15: 0.9 | D15: Discount 2 | E15: 0.8 | G15: Multiplying.
A16: Discount 3 | B16: 0.9 | D16: Discount 3 | E16: 0.85 | G16: <<== Occasionally, the PRODUCT function
A17: Net Cost Equivalent | B17: =PRODUCT(B14:B16) -> 0.648 | C17: =B14*B15*B16 -> 0.648 | D17: Net Cost Equivalent | E17: =PRODUCT(E14:E16) -> 0.442 | G17: may come in handy when you have a
G18: bunch of numbers to multiply
A20: Chapter 3: Compare Parts to Whole, we use Division
A22: Student Name | B22: Student Score | C22: Compare Your Score To Max Doing Division | E22: Max points for class
A23: Jo | B23: 362 | C23: =B23/$E$23 -> 0.724 | E23: 500
A24: Joe | B24: 500 | C24: =B24/$E$23 -> 1
A25: Sioux | B25: 396 | C25: 0.792
A26: Sue | B26: 477 | C26: 0.954
A27: Chin | B27: 453 | C27: 0.906
A28: Sheliadawn | B28: 454 | C28: 0.908
A30: Expense for Week | B30: 2955 | D30: <<== Keyboard for "Current" Number Format = Ctrl + Shift + 4
A31: Daily Expense | B31: =B30/7 -> 422.1428571 | D31: << == Numbers that will never change can be typed into formulas.
A34: ** Dividing by zero not allowed because "How many
A35: Zeroes are in a number???"
A37: Numerator | B37: Denominator | C37: Quotient (answer)
A38: 10 | C38: =A38/B38 -> 
A40: Example of Remainder, Fraction, Decimal:
A42: Long Hand Division | F42: Check
A43: Numerator | B43: Denominator | D43: 126 | F43: 24
A44: 126 | B44: 24 | D44: 24 | E44: Whole Number | F44: 5
F45: =F43*F44 -> 120
E46: Remainder | F46: =D43-F45 -> 6
A48: Numerator | B48: Denominator | C48: Quotient (answer) | D48: QUOTIENT function shows just whole number | E48: MOD Function shows just remainder | F48: Whole Number w Fraction (Mixed Number)
A49: 126 | B49: 24 | C49: =A49/B49 -> 5.25 | D49: =QUOTIENT(A49,B49) -> 5 | E49: =MOD(A49,B49) -> 6 | F49: =A49/B49 -> 5.25 | G49: <<== Fraction Number Formatting

Sheet Exponents
A1: Exponents are convenient way to multiply when you have to
A2: multiply the same number over and over!
A4: 2 | B4: . | C4: What is the number we are multiplying?
A5: 2 | E5: =IF(D5<>"","This is called an 'Base'","") -> 
A6: 2 | B6: . | C6: How many times did we have to multiply it?
A7: 2 | E7: =IF(D7<>"","This is called an 'Exponent'","") -> 
A9: or | D9: 24
E10: =IF(D7="","","Formula is =2^4 or =D5^D7") -> 
D12: 24

Sheet OOO (hidden)
A1: Arithmetic operation signs in Excel:
A2: ( ) represents Parentheses
A3: ^ represents Exponents (powers and roots)
A4: * represents Multiplication
A5: / represents Division
A6: + represents Addition
A7: – represents Subtraction
A9: Order of Operations form Algebra class (Each one is left to right):
A10: Please è Parenthesis è ( )
A11: Excuse è Exponents è ^ è 2^2 = 4 or 4^(1/2) = 2
A12: My Dear è Multiplication è * and Division è /
A13: Aunt Sally è Adding (SUM) è + and Subtraction è -
A17: Excel's Order of Operations:
A18: Parenthesis ( )
A19: Ranges use of colon symbol ":"
A20: Example: =SUM(A1:A4)
A21: Evaluate unions (,)
A22: Example: =SUM(A1:A4,B2:C7)
A23: Negation (-)
A24: Example: =-2^4 è 16
A25: Example: =-(2^4) è -16
A26: Converts % (1% è .01)
A27: Exponents (^)
A28: Example 1: 4^(1/2) = 2
A29: Example: 3^2 = 9
A30: Multiplication (*) and division (/), left to right
A31: Adding (+) and division (-), left to right
A32: Text operators (& è Concatenation)
A33: Comparative symbols: =, <>, >=, <=, <, >
A34: If anything is still left, then left to right

Sheet Exponents (an)
A1: Exponents are convenient way to multiply when you have to
A2: multiply the same number over and over!
A4: 2 | B4: . | C4: What is the number we are multiplying?
A5: 2 | D5: 2 | E5: =IF(D5<>"","This is called an 'Base'","") -> This is called an 'Base'
A6: 2 | B6: . | C6: How many times did we have to multiply it?
A7: 2 | D7: 4 | E7: =IF(D7<>"","This is called an 'Exponent'","") -> This is called an 'Exponent'
A8: =A7*A5*A6*A4 -> 16
A9: or | D9: 24
A10: =PRODUCT(A4:A7) -> 16 | D10: =D5^D7 -> 16 | E10: =IF(D7="","","Formula is =2^4 or =D5^D7") -> Formula is =2^4 or =D5^D7
D12: 24

Sheet Word
A1: Steps for solving word-application problems:
A2: Step 1: | B2: 1) List all relevant facts and numbers with proper labels, 2) State goal of problem
A3: Step 2: | B3: 1) Set up problem, 2) solve using efficient Excel features, 3) check and double check
A4: Step 3: | B4: Answer the question with a write statement.
A6: Translate words into math symbols
A7: Add | B7: Subtract | C7: Multiply | D7: Division | E7: Equal | F7: Powers
A8: plus | B8: less | C8: product | D8: divided by | E8: is | F8: squared
A9: more | B9: subtract | C9: double | D9: divided into | E9: the same as | F9: raised to
A10: more than | B10: subtracted from | C10: triple | D10: quotient | E10: equals | F10: to the second power
A11: added to | B11: difference | C11: times | D11: goes into | E11: equal to | F11: cubed
A12: increased by | B12: less than | C12: of | D12: divide | E12: yields | F12: to the 12th power
A13: sum | B13: fewer | C13: twice | D13: divided equally | E13: results in
A14: total | B14: decreased by | C14: twice as much | D14: per | E14: are
A15: sum of | B15: loss of
A16: increase of | B16: minus
A17: gain of | B17: take away
A18: add | B18: reduced by

Sheet W(1)
A1: Using the three steps for solving word problems (1. List all facts & goal, 2. Setup & solve using
A2: efficient Excel features, 3. Answer with written statement. Use the cells below to list facts and
A3: ="make calculations and put your written answer in cell "&ADDRESS(ROW(A34),COLUMN(A34),4)&"." -> make calculations and put your written answer in cell A34.
A4: If you sell 5 Quad boomerangs for $32.00 each and the cost for each was $17.75 and you sell 2
A5: Carlota boomerangs for $22 each and the cost for each was $13, what was the total profit that
A6: you made?
A8: Step 1:
A17: Step 2:
A33: Step 3:

Sheet W(1an)
A1: Using the three steps for solving word problems (1. List all facts & goal, 2. Setup & solve using
A2: efficient Excel features, 3. Answer with written statement. Use the cells below to list facts and
A3: ="make calculations and put your written answer in cell "&ADDRESS(ROW(A34),COLUMN(A34),4)&"." -> make calculations and put your written answer in cell A34.
A4: If you sell 5 Quad boomerangs for $32.00 each and the cost for each was $17.75 and you sell 2
A5: Carlota boomerangs for $22 each and the cost for each was $13, what was the total profit that
A6: you made?
A8: Step 1:
A9: # Quad Sold | B9: 5
A10: Sell Price of Quad | B10: 32
A11: Cost of Quad | B11: 17.75
A12: # of Carlota sold | B12: 2
A13: sell Price of Carlota | B13: 22
A14: Cost of Carlota | B14: 13
A15: Goal: | B15: Find Total Profit
A17: Step 2:
A18: =A9 -> # Quad Sold | B18: =B9 -> 5
A19: =A10 -> Sell Price of Quad | B19: =B10 -> 32 | D19: Check
A20: Total Revenue Quad | B20: =B19*B18 -> 160 | D20: =A9 -> # Quad Sold | E20: 5
A21: =A12 -> # of Carlota sold | B21: =B12 -> 2 | D21: Sell Price of Quad | E21: 32
A22: =A13 -> sell Price of Carlota | B22: =B13 -> 22 | D22: Cost of Quad | E22: 17.75
A23: Total Revenue Carlota | B23: =B22*B21 -> 44 | D23: # of Carlota sold | E23: 2
A24: Total Revenue | B24: =B23+B20 -> 204 | D24: sell Price of Carlota | E24: 22
A25: =A11 -> Cost of Quad | B25: =B11 -> 17.75 | D25: Cost of Carlota | E25: 13
A26: Total Cost of Quads | B26: =B25*B18 -> 88.75 | D26: Total Profit | E26: =(E21-E22)*E20+(E24-E25)*E23 -> 89.25
A27: =A14 -> Cost of Carlota | B27: =B14 -> 13
A28: Total Cost of Carlotas | B28: =B27*B21 -> 26
A29: Total Cost | B29: =B28+B26 -> 114.75
A30: Total Profit | B30: =B24-B29 -> 89.25 | D30: COGS
A33: Step 3:
A34: The total profit that we made after selling the 5 Quad and 2 Carlota Boomerangs was $89.25.

Sheet W(2)
A1: Using the three steps for solving word problems (1. List all facts & goal, 2. Setup & solve using | K1: 1500
A2: efficient Excel features, 3. Answer with written statement. Use the cells below to list facts and | K2: 35
A3: ="make calculations and put your written answer in cell "&ADDRESS(ROW(A23),COLUMN(A23),4)&"." -> make calculations and put your written answer in cell A23. | K3: 25
A4: ="If a theater owner needs "&TEXT(K1,"#,###")&" total seats and wants the main floor to have "&K2&" rows with "&K3&" seats in each, and the balcony to have "&K4&" rows, how many seats must be in each balcony row?" -> If a theater owner needs 1,500 total seats and wants the main floor to have 35 rows with 25 seats in each, and the balcony to have 25 rows, how many seats must be in each balcony row? | K4: 25
A6: Step 1:
A13: Step 2:
A22: Step 3:

Sheet W(2an)
A1: Using the three steps for solving word problems (1. List all facts & goal, 2. Setup & solve using | K1: 1500
A2: efficient Excel features, 3. Answer with written statement. Use the cells below to list facts and | K2: 35
A3: ="make calculations and put your written answer in cell "&ADDRESS(ROW(A23),COLUMN(A23),4)&"." -> make calculations and put your written answer in cell A23. | K3: 25
A4: ="If a theater owner needs "&TEXT(K1,"#,###")&" total seats and wants the main floor to have "&K2&" rows with "&K3&" seats in each, and the balcony to have "&K4&" rows, how many seats must be in each balcony row?" -> If a theater owner needs 1,500 total seats and wants the main floor to have 35 rows with 25 seats in each, and the balcony to have 25 rows, how many seats must be in each balcony row? | K4: 25
A6: Step 1:
A7: Total seats | B7: 1500
A8: Main Floor # of Rows | B8: 35
A9: Seats in Each Main Floor Row | B9: 25
A10: Balcony # of Rows | B10: 25
A11: Goal: | B11: Find # of seats in each Balcony Row
A13: Step 2:
A14: =A8 -> Main Floor # of Rows | B14: =B8 -> 35 | D14: =A7 -> Total seats | E14: =B7 -> 1500
A15: =A9 -> Seats in Each Main Floor Row | B15: =B9 -> 25 | D15: =A8 -> Main Floor # of Rows | E15: 35
A16: Total Seats on Main Floor | B16: =B15*B14 -> 875 | D16: Seats in Each Main Floor Row | E16: 25
A17: =A7 -> Total seats | B17: =B7 -> 1500 | D17: Balcony # of Rows | E17: 25
A18: Total seats in Balcony | B18: =B17-B16 -> 625 | D18: =A20 -> # of seats in each Balcony Row | E18: =(E14-E15*E16)/E17 -> 25
A19: =A10 -> Balcony # of Rows | B19: =B10 -> 25
A20: # of seats in each Balcony Row | B20: =B18/B19 -> 25
A22: Step 3:
A23: Given the information in the problem, the number of seats in each balcony row is 25.

Sheet HW Answers MGirvin Created== >>

Sheet 1.1
A1: 3 | B1: 37901 | C1: Thirty-seven thousand, nine hundred one.
A2: 5 | B2: 4650015 | C2: Four million, six hundred fifty thousand, fifteen.
C4: Position to round to:
C5: Ten | D5: Hundred | E5: Thousand
C6: -1 | D6: -2 | E6: -3
A7: 9 | B7: 46231 | C7: =ROUND($B$7,C6) -> 46230 | D7: =ROUND($B$7,D6) -> 46200 | E7: 46000
A8: 11 | B8: 106054 | C8: =ROUND($B$8,C6) -> 106050 | D8: =ROUND($B$8,D6) -> 106100 | E8: 106000
A10: 31 | B10: Product | C10: Jan | D10: Feb | E10: Mar | F10: Apr | G10: May | H10: Jun | I10: Totals
B11: S | C11: 49802 | D11: 36911 | E11: 47851 | F11: 54732 | G11: 29852 | H11: 74119 | I11: =SUM(C11:H11) -> 293267
B12: C | C12: 86154 | D12: 72908 | E12: 31552 | F12: 74944 | G12: 85532 | H12: 36705 | I12: =SUM(C12:H12) -> 387795
B13: Product | C13: 59854 | D13: 85119 | E13: 87914 | F13: 45812 | G13: 56314 | H13: 91856 | I13: =SUM(C13:H13) -> 426869
B14: MP | C14: 73951 | D14: 72564 | E14: 39615 | F14: 71099 | G14: 72918 | H14: 42953 | I14: =SUM(C14:H14) -> 373100
B15: Totals | C15: =SUM(C11:C14) -> 269761 | D15: 267502 | E15: 206932 | F15: 246587 | G15: 244616 | H15: 245633 | I15: =SUM(C15:H15) -> 1481031
A17: 71 | B17: Step 1:
C18: # of Sodas | D18: 900
C19: # candy bars | D19: 400
C20: Snack items | D20: 500
C21: Cups of coffee | D21: 200
C22: There are more than one vending machine
C23: Time to restock all machines | D23: 4 | E23: hours
C24: Goal: | D24: Find how many items have can re-stock in 1 hour
C25: Hours considered | D25: 1
B26: Step 2:
C27: =C18 -> # of Sodas | D27: 900
C28: # candy bars | D28: 400
C29: Snack items | D29: 500
C30: Cups of coffee | D30: 200
C31: Total | D31: =SUM(D27:D30) -> 2000 | E31: =" <<== This many in "&D23&" "&E23 -> <<== This many in 4 hours
C33: =D31&" / "&D23&" = # items in "&D25&" hours" -> 2000 / 4 = # items in 1 hours | D33: =D31/D23 -> 500
B35: Step 3:
C36: ="Jim Wilson can re-stock "&D33&" items in "&D25&" hour" -> Jim Wilson can re-stock 500 items in 1 hour

Sheet 1.2
A1: 3 | B1: Step 1:
B2: # miles driven last year | C2: 3020 | D2: billion
B3: # Miles driven this year | C3: 2920 | D3: billion
B4: Goal | C4: Find reduction in miles driven
B6: Step 2:
B7: =B2 -> # miles driven last year | C7: =C2 -> 3020
B8: =B3 -> # Miles driven this year | C8: =C3 -> 2920
B9: reduction in miles driven | C9: =C7-C8 -> 100
B11: Step 3:
B12: ="The reduction in miles driven between last year and this year was "&C9&" billion miles." -> The reduction in miles driven between last year and this year was 100 billion miles.
A14: 5 | B14: Step 1:
B15: WW II veterans deaths per day | C15: 607
B16: Days in year | C16: 365
B17: Goal: | C17: Project how many WW II veterans will die in next year
B20: Step 2:
B21: =B15 -> WW II veterans deaths per day | C21: 607
B22: Days in year | C22: 365
B23: Project how many WW II veterans will die in next year | C23: =C21*C22 -> 221555
B26: Step 3:
B27: ="The projected number of WW II veterans that will die in the next year is "&TEXT(C23,"#,###") -> The projected number of WW II veterans that will die in the next year is 221,555
A29: 7 | B29: Step 1:
B30: Boat weight | C30: 8375 | D30: lbs
B31: Engine removed | C31: 762 | D31: lbs
B32: New Engine | C32: 976 | D32: lbs
B33: Goal: | C33: Find weight of boat after engine change
B35: Step 2:
B36: =B30 -> Boat weight | C36: =C30 -> 8375
B37: =B31 -> Engine removed | C37: 762
B38: New Engine | C38: 976
B39: weight of boat after engine change | C39: =C36-C37+C38 -> 8589
B41: Step 3:
B42: ="Weight of boat after engine change would be "&TEXT(C39,"#,###")&" "&D30 -> Weight of boat after engine change would be 8,589 lbs
A44: 19 | B44: Step 1:
B45: Desired Seat Total | C45: 1250
B46: # of Main Floor Rows | C46: 30
B47: # of Main Floor Seats per Row | C47: 25
B48: # of Balcony Rows | C48: 25
B49: Goal: | C49: Find number of seats in each balcony row
B50: Step 2:
B51: =B46 -> # of Main Floor Rows | C51: =C46 -> 30
B52: =B47 -> # of Main Floor Seats per Row | C52: =C47 -> 25
B53: Total Seats on Main Floor | C53: =C52*C51 -> 750
B54: =B45 -> Desired Seat Total | C54: =C45 -> 1250
B55: Seats in Balcony | C55: =C54-C53 -> 500
B56: =B48 -> # of Balcony Rows | C56: =C48 -> 25
B57: # of seats in each balcony row | C57: =C55/C56 -> 20
B59: Step 3:
B60: ="Given the information in this problem, there would need to be "&C57&" seats in each balcony row." -> Given the information in this problem, there would need to be 20 seats in each balcony row.

Sheet 1.3
B2: Number To Round To ==>> | C2: 1 | D2: 2 | E2: 3
A3: Problem | B3: Number | C3: Tenth | D3: Hundredth | E3: Thousandths
A4: 27 | B4: 3.5218 | C4: =ROUND(B4,$C$2) -> 3.5 | D4: =ROUND(B4,$D$2) -> 3.52 | E4: =ROUND(B4,$E$2) -> 3.522
A5: 28 | B5: 4.836 | C5: 4.8 | D5: 4.84 | E5: 4.836
A6: 29 | B6: 2.54836 | C6: 2.5 | D6: 2.55 | E6: 2.548
A7: 30 | B7: 7.44652 | C7: 7.4 | D7: 7.45 | E7: 7.447
A8: 31 | B8: 27.32451 | C8: 27.3 | D8: 27.32 | E8: 27.325
A9: 32 | B9: 89.53796 | C9: 89.5 | D9: 89.54 | E9: 89.538
A10: 33 | B10: 36.47249 | C10: 36.5 | D10: 36.47 | E10: 36.472
A11: 34 | B11: 58.95651 | C11: 59 | D11: 58.96 | E11: 58.957
A12: 35 | B12: 0.0562 | C12: 0.1 | D12: 0.06 | E12: 0.056
A13: 36 | B13: 0.0789 | C13: 0.1 | D13: 0.08 | E13: 0.079
A15: Problem | B15: Number | C15: Rounded To Penny
A16: 37 | B16: 5.056 | C16: =ROUND(B16,2) -> 5.06
A17: 38 | B17: 375.003 | C17: =ROUND(B17,2) -> 375
A18: 39 | B18: 42.137 | C18: 42.14
A19: 40 | B19: 0.008 | C19: 0.01
A20: 41 | B20: 1.995 | C20: 2
A21: 42 | B21: 16.519 | C21: 16.52
A22: 43 | B22: 382.005 | C22: 382.01
A23: 44 | B23: 0.846 | C23: 0.85
A24: 45 | B24: 1.5002 | C24: 1.5
A25: 46 | B25: 28.994 | C25: 28.99
A26: 47 | B26: 32.493 | C26: 32.49
A27: 48 | B27: 12802.965 | C27: 12802.97
A28: 49 | B28: 0.0015 | C28: 0
A29: 50 | B29: 7.6009 | C29: 7.6
A30: 51 | B30: 752.798 | C30: 752.8
A32: Problem | B32: Number | C32: Rounded To Dollar
A33: 52 | B33: 8.58 | C33: =ROUND(B33,0) -> 9
A34: 53 | B34: 26.49 | C34: 26
A35: 54 | B35: 0.57 | C35: 1
A36: 55 | B36: 0.49 | C36: 0
A37: 56 | B37: 299.76 | C37: 300
A38: 57 | B38: 12836.38 | C38: 12836
A39: 58 | B39: 268.72 | C39: 269
A40: 59 | B40: 395.18 | C40: 395
A41: 60 | B41: 666.66 | C41: 667
A42: 61 | B42: 4699.62 | C42: 4700
A43: 62 | B43: 11285.13 | C43: 11285
A44: 63 | B44: 378.59 | C44: 379
A45: 64 | B45: 233.86 | C45: 234
A46: 65 | B46: 722.38 | C46: 722
A47: 66 | B47: 8263.47 | C47: 8263

Sheet 1.4
A1: 19 | B1: Step 1:
B2: Ave cost of T-bone per lbs | C2: 6.71
B3: Ave cost of Turkey per lbs | C3: 1.39
B4: Goal: | C4: Find how much more per pound is the price of T-bone than turkey
B6: Step 2:
B7: =B2 -> Ave cost of T-bone per lbs | C7: 6.71
B8: Ave cost of Turkey per lbs | C8: 1.39
B9: Difference | C9: =C7-C8 -> 5.32
B12: Step 3:
B13: ="T-bone is "&DOLLAR(C9)&" more per pound than is turkey." -> T-bone is $5.32 more per pound than is turkey.
A15: 30, 31, 32 | B15: Step 1:
B16: March 1 Bank Balance | C16: 5382.12
B17: March deposits | C17: 60375.82
B18: Credits from suppliers (incoming funds) | C18: 3280.18
B19: Tax Refund | C19: 75.53
B20: Paid out to suppliers | C20: 27282.75
B21: Rent and utilities | C21: 4280.83
B22: Salaries and Misc | C22: 12252.23
B23: Goal: | C23: What are 1) total deposits, 2) Total Pay Out, 3) Final Balance?
B25: Step 2:
B26: =B17 -> March deposits | C26: 60375.82
B27: Credits from suppliers (incoming funds) | C27: 3280.18
B28: Tax Refund | C28: 75.53
B29: Total deposits | C29: =SUM(C26:C28) -> 63731.53
B30: =B20 -> Paid out to suppliers | C30: 27282.75
B31: Rent and utilities | C31: 4280.83
B32: Salaries and Misc | C32: 12252.23
B33: Total Pay Out | C33: =SUM(C30:C32) -> 43815.81
B34: =B16 -> March 1 Bank Balance | C34: =C16 -> 5382.12
B35: Final Balance | C35: =C34+C29-C33 -> 25297.84
B37: Step 3:
B38: =B29&" were "&DOLLAR(C29)&", "&B33&" was "&DOLLAR(C33)&" and the final balance was "&DOLLAR(C35) -> Total deposits were $63,731.53, Total Pay Out was $43,815.81 and the final balance was $25,297.84

Sheet 1.5
A1: 27 | B1: Step 1:
B2: Miles in 1 week | C2: 519
B3: Gas used | C3: 10.2
B4: Goal: | C4: Find miles per gallon to the nearest tenth
B6: Step 2:
B7: =B2 -> Miles in 1 week | C7: 519
B8: Gas used | C8: 10.2
B9: Miles per Gallon | C9: =ROUND(C7/C8,1) -> 50.9
B12: Step 3:
B13: ="The auto got "&C9&" miles per gallon" -> The auto got 50.9 miles per gallon
A15: 30 | B15: Step 1:
B16: Amount of ingredient in 1 dose of medication | C16: 1.62 | D16: milligrams
B17: Total amount of ingredient | C17: 57.13 | D17: milligrams
B18: Goal: | C18: Find the total number of doses of medication that can be made, round to nearest whole number
B20: Step 2:
B21: =B16 -> Amount of ingredient in 1 dose of medication | C21: 1.62
B22: =B17 -> Total amount of ingredient | C22: 57.13
B23: total number of doses of medication that can be made | C23: =ROUND(C22/C21,0) -> 35
B25: Step 3:
B26: ="The "&B23&" is "&C23 -> The total number of doses of medication that can be made is 35
